[Event "Late-Titled-Tuesday-Blitz-March-26-2024"]
[Site "Chess.com"]
[Date "2024.03.26"]
[Round "11"]
[White "thesupera12"]
[Black "b_6"]
[Result "1-0"]
[WhiteElo "2439"]
[BlackElo "2462"]
[TimeControl "180+1"]
[EndTime "16:02:29 PDT"]
[Termination "thesupera12 won by resignation"]

1. e4 {[%clk 0:02:52.7]} 1... c5 {[%clk 0:02:59.5]} 2. Qh5 {[%clk 0:02:52.3]}
2... Nf6 {[%clk 0:02:58.2]} 3. Qxc5 {[%clk 0:02:51.1]} 3... Nxe4 {[%clk
0:02:58.1]} 4. Qe3 {[%clk 0:02:51.8]} 4... d5 {[%clk 0:02:56.5]} 5. d3 {[%clk
0:02:51.1]} 5... Nf6 {[%clk 0:02:55.6]} 6. Nf3 {[%clk 0:02:51.3]} 6... Nc6
{[%clk 0:02:54.8]} 7. d4 {[%clk 0:02:51.1]} 7... Bf5 {[%clk 0:02:52.5]} 8. Bd3
{[%clk 0:02:50.4]} 8... Bxd3 {[%clk 0:02:51.5]} 9. Qxd3 {[%clk 0:02:51.3]} 9...
e6 {[%clk 0:02:50.4]} 10. O-O {[%clk 0:02:50.7]} 10... Qc7 {[%clk 0:02:43]} 11.
Bg5 {[%clk 0:02:48]} 11... Ne4 {[%clk 0:02:42.3]} 12. Bh4 {[%clk 0:02:45.6]}
12... Nb4 {[%clk 0:02:36.9]} 13. Qb5+ {[%clk 0:02:44.4]} 13... Qc6 {[%clk
0:02:37]} 14. Qxc6+ {[%clk 0:02:44.2]} 14... bxc6 {[%clk 0:02:34.6]} 15. Rc1
{[%clk 0:02:42.5]} 15... Be7 {[%clk 0:02:29.3]} 16. Bxe7 {[%clk 0:02:41.5]}
16... Kxe7 {[%clk 0:02:30.2]} 17. a3 {[%clk 0:02:42.1]} 17... Na6 {[%clk
0:02:29]} 18. Nbd2 {[%clk 0:02:42]} 18... Nxd2 {[%clk 0:02:25.4]} 19. Nxd2
{[%clk 0:02:41.4]} 19... Rab8 {[%clk 0:02:25.5]} 20. b4 {[%clk 0:02:41.1]} 20...
Rhc8 {[%clk 0:02:20.3]} 21. Nb3 {[%clk 0:02:37]} 21... f6 {[%clk 0:02:17.5]} 22.
Re1 {[%clk 0:02:35.9]} 22... Kf7 {[%clk 0:02:17.2]} 23. Re3 {[%clk 0:02:33.8]}
23... Re8 {[%clk 0:02:14]} 24. Rae1 {[%clk 0:02:33.8]} 24... Rb7 {[%clk
0:02:09.6]} 25. f4 {[%clk 0:02:31.7]} 25... g6 {[%clk 0:02:05.1]} 26. Kf2 {[%clk
0:02:29]} 26... Rbe7 {[%clk 0:02:01.5]} 27. Rc3 {[%clk 0:02:28.8]} 27... Rc7
{[%clk 0:01:56]} 28. Na5 {[%clk 0:02:28.8]} 28... Nb8 {[%clk 0:01:55.6]} 29.
Ree3 {[%clk 0:02:26.2]} 29... e5 {[%clk 0:01:51.6]} 30. fxe5 {[%clk 0:02:24.9]}
30... fxe5 {[%clk 0:01:51.6]} 31. Rxe5 {[%clk 0:02:25]} 31... Rxe5 {[%clk
0:01:49.9]} 32. dxe5 {[%clk 0:02:25.9]} 32... Ke6 {[%clk 0:01:50.5]} 33. b5
{[%clk 0:02:16.7]} 33... c5 {[%clk 0:01:44.5]} 34. Nc6 {[%clk 0:02:16.9]} 34...
Nxc6 {[%clk 0:01:31.7]} 35. Rxc5 {[%clk 0:02:16.5]} 35... Kxe5 {[%clk 0:01:29]}
36. Rxc6 {[%clk 0:02:15.8]} 36... Rxc6 {[%clk 0:01:20.3]} 37. bxc6 {[%clk
0:02:15.3]} 37... Kd6 {[%clk 0:01:21]} 38. c7 {[%clk 0:01:51.4]} 38... Kxc7
{[%clk 0:01:20.8]} 39. Ke3 {[%clk 0:01:52.3]} 39... Kd6 {[%clk 0:01:17.9]} 40.
Kd4 {[%clk 0:01:53.2]} 40... g5 {[%clk 0:01:15.1]} 41. g4 {[%clk 0:01:51.6]}
41... h6 {[%clk 0:01:07.6]} 42. h3 {[%clk 0:01:40.4]} 42... Ke6 {[%clk
0:00:55.8]} 43. Kc5 {[%clk 0:01:31.5]} 43... Ke5 {[%clk 0:00:55.4]} 44. Kc6
{[%clk 0:01:31.8]} 44... Kf4 {[%clk 0:00:49.2]} 45. Kxd5 {[%clk 0:01:31.6]}
45... Kg3 {[%clk 0:00:49.1]} 46. c4 {[%clk 0:01:32.3]} 46... Kxh3 {[%clk
0:00:47.9]} 47. c5 {[%clk 0:01:32.5]} 47... Kxg4 {[%clk 0:00:48.8]} 48. c6
{[%clk 0:01:33.1]} 48... h5 {[%clk 0:00:49.7]} 49. c7 {[%clk 0:01:33.7]} 49...
h4 {[%clk 0:00:50.1]} 50. c8=Q+ {[%clk 0:01:34.6]} 1-0

[Event "Late-Titled-Tuesday-Blitz-March-26-2024"]
[Site "Chess.com"]
[Date "2024.03.26"]
[Round "11"]
[White "rdarruda"]
[Black "The_Straightforward_Rook"]
[Result "1/2-1/2"]
[WhiteElo "2510"]
[BlackElo "2397"]
[TimeControl "180+1"]
[EndTime "16:02:30 PDT"]
[Termination "Game drawn by repetition"]

1. d4 {[%clk 0:02:30.9]} 1... d5 {[%clk 0:02:49.9]} 2. Nf3 {[%clk 0:02:30.7]}
2... c6 {[%clk 0:02:48]} 3. c4 {[%clk 0:02:30.8]} 3... Nf6 {[%clk 0:02:46.9]} 4.
e3 {[%clk 0:02:30.8]} 4... e6 {[%clk 0:02:46.2]} 5. Nc3 {[%clk 0:02:31.1]} 5...
Nbd7 {[%clk 0:02:46.7]} 6. Bd3 {[%clk 0:02:31]} 6... dxc4 {[%clk 0:02:46.4]} 7.
Bxc4 {[%clk 0:02:30.6]} 7... b5 {[%clk 0:02:47.3]} 8. Be2 {[%clk 0:02:30]} 8...
b4 {[%clk 0:02:48.2]} 9. Na4 {[%clk 0:02:29.3]} 9... c5 {[%clk 0:02:48]} 10.
Nxc5 {[%clk 0:02:27.7]} 10... Nxc5 {[%clk 0:02:48.9]} 11. dxc5 {[%clk 0:02:26]}
11... Qxd1+ {[%clk 0:02:48.8]} 12. Bxd1 {[%clk 0:02:26.9]} 12... Bxc5 {[%clk
0:02:49]} 13. b3 {[%clk 0:02:24.2]} 13... Ba6 {[%clk 0:02:48.3]} 14. Bb2 {[%clk
0:02:22.8]} 14... Ke7 {[%clk 0:02:46.5]} 15. Be2 {[%clk 0:02:22.8]} 15... Bxe2
{[%clk 0:02:40.8]} 16. Kxe2 {[%clk 0:02:23.7]} 16... Rhd8 {[%clk 0:02:39.7]} 17.
Ne5 {[%clk 0:02:21.3]} 17... Rac8 {[%clk 0:02:38.6]} 18. Rac1 {[%clk 0:02:21.1]}
18... Nd5 {[%clk 0:02:24.6]} 19. Rhd1 {[%clk 0:02:18.6]} 19... f6 {[%clk
0:02:22.7]} 20. Nc4 {[%clk 0:02:08.3]} 20... Nb6 {[%clk 0:02:17.2]} 21. Na5
{[%clk 0:02:05.9]} 21... Rxd1 {[%clk 0:02:15.5]} 22. Rxd1 {[%clk 0:02:06.4]}
22... Bd6 {[%clk 0:02:11.7]} 23. Rd2 {[%clk 0:02:01.3]} 23... Nd5 {[%clk
0:02:08.7]} 24. Nc4 {[%clk 0:01:59.6]} 24... Bb8 {[%clk 0:02:04.9]} 25. g3
{[%clk 0:01:56.7]} 25... h5 {[%clk 0:02:03.1]} 26. e4 {[%clk 0:01:45.6]} 26...
Nb6 {[%clk 0:01:57]} 27. Nxb6 {[%clk 0:01:44.6]} 27... axb6 {[%clk 0:01:57.9]}
28. Bd4 {[%clk 0:01:41.5]} 28... Rc6 {[%clk 0:01:49.3]} 29. Kd3 {[%clk
0:01:39.2]} 29... Bd6 {[%clk 0:01:47.4]} 30. f3 {[%clk 0:01:34.4]} 30... Bc5
{[%clk 0:01:33.8]} 31. Be3 {[%clk 0:01:28.7]} 31... Rd6+ {[%clk 0:01:14.4]} 32.
Ke2 {[%clk 0:01:27.9]} 32... Bxe3 {[%clk 0:01:14.3]} 33. Kxe3 {[%clk 0:01:28.1]}
33... Rxd2 {[%clk 0:01:14.2]} 34. Kxd2 {[%clk 0:01:29]} 34... Kd6 {[%clk
0:01:14.4]} 35. Kd3 {[%clk 0:01:28]} 35... Kc5 {[%clk 0:01:13.4]} 36. Ke3 {[%clk
0:01:28]} 36... e5 {[%clk 0:01:13]} 37. Kd3 {[%clk 0:01:28]} 37... g5 {[%clk
0:01:12.2]} 38. h4 {[%clk 0:01:26.5]} 38... b5 {[%clk 0:01:08]} 39. Ke3 {[%clk
0:01:23.8]} 39... Kd6 {[%clk 0:01:05.6]} 40. Kd3 {[%clk 0:01:23.4]} 40... Kc5
{[%clk 0:01:04.3]} 41. Ke3 {[%clk 0:01:23.5]} 41... Kd6 {[%clk 0:01:04.3]} 42.
Kd3 {[%clk 0:01:23.6]} 42... Ke6 {[%clk 0:00:55.8]} 43. Ke3 {[%clk 0:01:23.1]}
43... Kd6 {[%clk 0:00:43.2]} 1/2-1/2

[Event "Late-Titled-Tuesday-Blitz-March-26-2024"]
[Site "Chess.com"]
[Date "2024.03.26"]
[Round "11"]
[White "Slovak_fighter2000"]
[Black "Heliosis11"]
[Result "0-1"]
[WhiteElo "2592"]
[BlackElo "2362"]
[TimeControl "180+1"]
[EndTime "16:02:35 PDT"]
[Termination "Heliosis11 won on time"]

1. e4 {[%clk 0:02:59.4]} 1... c5 {[%clk 0:02:59.3]} 2. Nf3 {[%clk 0:02:58]} 2...
e6 {[%clk 0:02:59.7]} 3. c3 {[%clk 0:02:58.2]} 3... Nf6 {[%clk 0:02:58.2]} 4. e5
{[%clk 0:02:58.6]} 4... Nd5 {[%clk 0:02:58.9]} 5. d4 {[%clk 0:02:58.9]} 5...
cxd4 {[%clk 0:02:59.8]} 6. cxd4 {[%clk 0:02:59.5]} 6... b6 {[%clk 0:03:00.5]} 7.
g3 {[%clk 0:02:48.7]} 7... Bb7 {[%clk 0:02:57]} 8. Bg2 {[%clk 0:02:44.6]} 8...
d6 {[%clk 0:02:42.2]} 9. O-O {[%clk 0:02:44]} 9... dxe5 {[%clk 0:02:42.1]} 10.
Nxe5 {[%clk 0:02:41.2]} 10... Nd7 {[%clk 0:02:42.1]} 11. Re1 {[%clk 0:02:37.6]}
11... Nxe5 {[%clk 0:02:42]} 12. dxe5 {[%clk 0:02:25.9]} 12... Be7 {[%clk
0:02:33.3]} 13. Qg4 {[%clk 0:02:09.4]} 13... g6 {[%clk 0:02:27.2]} 14. Bh6
{[%clk 0:02:02.3]} 14... Rc8 {[%clk 0:02:05.6]} 15. Nc3 {[%clk 0:01:54.1]} 15...
Qd7 {[%clk 0:01:22.5]} 16. Rad1 {[%clk 0:01:51.6]} 16... Rd8 {[%clk 0:01:20.9]}
17. Nxd5 {[%clk 0:01:43]} 17... Bxd5 {[%clk 0:01:16.9]} 18. Bg7 {[%clk
0:01:38.3]} 18... h5 {[%clk 0:01:15.1]} 19. Bf6 {[%clk 0:01:39.2]} 19... hxg4
{[%clk 0:01:14.4]} 0-1

[Event "Late-Titled-Tuesday-Blitz-March-26-2024"]
[Site "Chess.com"]
[Date "2024.03.26"]
[Round "11"]
[White "wild3000"]
[Black "hellokostya"]
[Result "0-1"]
[WhiteElo "2421"]
[BlackElo "2589"]
[TimeControl "180+1"]
[EndTime "16:03:07 PDT"]
[Termination "hellokostya won by resignation"]

1. a3 {[%clk 0:03:00]} 1... e5 {[%clk 0:02:59.4]} 2. e3 {[%clk 0:02:57.6]} 2...
d5 {[%clk 0:02:58.9]} 3. b4 {[%clk 0:02:54]} 3... Bd6 {[%clk 0:02:56.9]} 4. Bb2
{[%clk 0:02:53.9]} 4... Nf6 {[%clk 0:02:56.9]} 5. c4 {[%clk 0:02:53.6]} 5... c6
{[%clk 0:02:55.3]} 6. Nf3 {[%clk 0:02:52.1]} 6... Qe7 {[%clk 0:02:53.8]} 7. d4
{[%clk 0:02:45.8]} 7... e4 {[%clk 0:02:53.7]} 8. Ne5 {[%clk 0:02:45.6]} 8...
Nbd7 {[%clk 0:02:53.5]} 9. Nxd7 {[%clk 0:02:43.4]} 9... Bxd7 {[%clk 0:02:54.4]}
10. Nd2 {[%clk 0:02:41.1]} 10... h5 {[%clk 0:02:51.6]} 11. Be2 {[%clk
0:02:40.3]} 11... h4 {[%clk 0:02:51.6]} 12. h3 {[%clk 0:02:40.5]} 12... Rh6
{[%clk 0:02:48.1]} 13. cxd5 {[%clk 0:02:32.4]} 13... cxd5 {[%clk 0:02:47]} 14.
Rc1 {[%clk 0:02:32.2]} 14... Rg6 {[%clk 0:02:45.6]} 15. Bf1 {[%clk 0:02:11.9]}
15... Nh7 {[%clk 0:02:35.9]} 16. Qh5 {[%clk 0:02:06.9]} 16... Nf6 {[%clk
0:02:27.3]} 17. Qh8+ {[%clk 0:01:49.1]} 17... Qf8 {[%clk 0:02:27.1]} 18. Qxf8+
{[%clk 0:01:44.7]} 18... Kxf8 {[%clk 0:02:25.8]} 19. Nb3 {[%clk 0:01:43.9]}
19... b6 {[%clk 0:02:23]} 20. b5 {[%clk 0:01:25.7]} 20... Ne8 {[%clk 0:02:17.2]}
21. a4 {[%clk 0:01:20.9]} 21... f5 {[%clk 0:02:16.4]} 22. Bc3 {[%clk 0:01:10.7]}
22... f4 {[%clk 0:02:13.7]} 23. Bd2 {[%clk 0:01:10.1]} 23... Rf6 {[%clk
0:02:06.1]} 24. Na1 {[%clk 0:01:07.9]} 24... g5 {[%clk 0:02:02.3]} 25. Nc2
{[%clk 0:01:07.5]} 25... Rc8 {[%clk 0:01:58.2]} 26. Be2 {[%clk 0:01:04.1]} 26...
Ng7 {[%clk 0:01:56]} 27. O-O {[%clk 0:01:02.2]} 27... Nf5 {[%clk 0:01:53.5]} 28.
Bg4 {[%clk 0:01:00]} 28... Ke7 {[%clk 0:01:41.5]} 29. Nb4 {[%clk 0:00:48.8]}
29... Bxb4 {[%clk 0:01:33.9]} 30. Bxb4+ {[%clk 0:00:48.3]} 30... Kf7 {[%clk
0:01:33.3]} 31. Rxc8 {[%clk 0:00:47.6]} 31... Bxc8 {[%clk 0:01:33.3]} 32. Rc1
{[%clk 0:00:45.3]} 32... Be6 {[%clk 0:01:28.8]} 33. Rc7+ {[%clk 0:00:43.9]}
33... Kg6 {[%clk 0:01:29.1]} 34. Bd2 {[%clk 0:00:40.3]} 34... fxe3 {[%clk
0:01:27.5]} 35. fxe3 {[%clk 0:00:40.2]} 35... Ng3 {[%clk 0:01:26]} 36. Rc1
{[%clk 0:00:33.3]} 36... Bxg4 {[%clk 0:01:25]} 37. hxg4 {[%clk 0:00:34.2]} 37...
Ne2+ {[%clk 0:01:25.2]} 38. Kh2 {[%clk 0:00:29.6]} 38... Nxc1 {[%clk 0:01:26.1]}
39. Bxc1 {[%clk 0:00:29.6]} 39... Rf2 {[%clk 0:01:24.3]} 40. Ba3 {[%clk
0:00:29.4]} 40... Ra2 {[%clk 0:01:23.5]} 41. Bd6 {[%clk 0:00:27.2]} 41... Rxa4
{[%clk 0:01:23.1]} 42. Kg1 {[%clk 0:00:26.4]} 42... Ra5 {[%clk 0:01:22.6]} 43.
Bb8 {[%clk 0:00:26.5]} 43... Rxb5 {[%clk 0:01:22.3]} 44. Bxa7 {[%clk 0:00:26.7]}
44... Rb2 {[%clk 0:01:22.8]} 45. Bb8 {[%clk 0:00:25.9]} 45... b5 {[%clk
0:01:22.7]} 46. Bd6 {[%clk 0:00:25.9]} 46... b4 {[%clk 0:01:23.4]} 47. Kf1
{[%clk 0:00:26]} 47... b3 {[%clk 0:01:23.8]} 0-1

[Event "Late-Titled-Tuesday-Blitz-March-26-2024"]
[Site "Chess.com"]
[Date "2024.03.26"]
[Round "11"]
[White "DrVelja"]
[Black "HansOnTwitch"]
[Result "0-1"]
[WhiteElo "3029"]
[BlackElo "3116"]
[TimeControl "180+1"]
[EndTime "16:03:08 PDT"]
[Termination "HansOnTwitch won by resignation"]

1. e4 {[%clk 0:03:00.9]} 1... c5 {[%clk 0:02:58.9]} 2. Nf3 {[%clk 0:03:01.2]}
2... d6 {[%clk 0:02:57.8]} 3. d4 {[%clk 0:02:56.7]} 3... cxd4 {[%clk 0:02:58.7]}
4. Nxd4 {[%clk 0:02:57.5]} 4... Nf6 {[%clk 0:02:57.6]} 5. Nc3 {[%clk 0:02:58.1]}
5... a6 {[%clk 0:02:58.3]} 6. Be3 {[%clk 0:02:56]} 6... e5 {[%clk 0:02:55.1]} 7.
Nb3 {[%clk 0:02:56.5]} 7... Be6 {[%clk 0:02:55.6]} 8. f3 {[%clk 0:02:56.8]} 8...
h5 {[%clk 0:02:55.7]} 9. Nd5 {[%clk 0:02:57.3]} 9... Nxd5 {[%clk 0:02:55]} 10.
exd5 {[%clk 0:02:58.2]} 10... Bf5 {[%clk 0:02:55.7]} 11. Bd3 {[%clk 0:02:58.2]}
11... Bxd3 {[%clk 0:02:55.1]} 12. Qxd3 {[%clk 0:02:59.1]} 12... Be7 {[%clk
0:02:54.5]} 13. O-O-O {[%clk 0:02:59.8]} 13... Nd7 {[%clk 0:02:52.3]} 14. Kb1
{[%clk 0:02:59.9]} 14... Rc8 {[%clk 0:02:49.2]} 15. Nd2 {[%clk 0:02:46.9]} 15...
Bg5 {[%clk 0:02:43.2]} 16. Ne4 {[%clk 0:02:38.9]} 16... Be7 {[%clk 0:02:43.1]}
17. h4 {[%clk 0:02:35.6]} 17... Qc7 {[%clk 0:02:35.7]} 18. Bg5 {[%clk
0:02:25.6]} 18... f6 {[%clk 0:02:15.1]} 19. Bc1 {[%clk 0:02:18.1]} 19... f5
{[%clk 0:02:03.3]} 20. Ng5 {[%clk 0:02:18]} 20... Bxg5 {[%clk 0:02:03.4]} 21.
hxg5 {[%clk 0:02:08.8]} 21... g6 {[%clk 0:02:02.1]} 22. g4 {[%clk 0:02:09.1]}
22... Qc4 {[%clk 0:01:59.1]} 23. Qd2 {[%clk 0:01:58.3]} 23... fxg4 {[%clk
0:01:48.8]} 24. fxg4 {[%clk 0:01:37.4]} 24... Qxg4 {[%clk 0:01:47.9]} 25. Rhg1
{[%clk 0:01:30.5]} 25... Qc4 {[%clk 0:01:44.1]} 26. Rgf1 {[%clk 0:01:14.8]}
26... Nc5 {[%clk 0:01:41.7]} 27. Rf6 {[%clk 0:00:58.4]} 27... Ne4 {[%clk
0:01:41.3]} 28. Re6+ {[%clk 0:00:59]} 28... Kd7 {[%clk 0:01:41.4]} 29. Qg2
{[%clk 0:00:59]} 29... Rhf8 {[%clk 0:01:23.7]} 30. Re1 {[%clk 0:00:46.4]} 30...
Qxd5 {[%clk 0:01:13.4]} 31. Rxd6+ {[%clk 0:00:27.3]} 31... Kxd6 {[%clk
0:01:10.7]} 32. Rxe4 {[%clk 0:00:24.5]} 32... Rc4 {[%clk 0:01:11.3]} 0-1

[Event "Late-Titled-Tuesday-Blitz-March-26-2024"]
[Site "Chess.com"]
[Date "2024.03.26"]
[Round "11"]
[White "ural58"]
[Black "AndresDelgado77"]
[Result "1-0"]
[WhiteElo "2458"]
[BlackElo "2332"]
[TimeControl "180+1"]
[EndTime "16:03:10 PDT"]
[Termination "ural58 won on time"]

1. e4 {[%clk 0:02:57.5]} 1... e6 {[%clk 0:02:55.6]} 2. d4 {[%clk 0:02:56.3]}
2... d5 {[%clk 0:02:55.2]} 3. Nc3 {[%clk 0:02:55.4]} 3... Nf6 {[%clk 0:02:53.9]}
4. Bg5 {[%clk 0:02:54.6]} 4... Bb4 {[%clk 0:02:53.4]} 5. e5 {[%clk 0:02:50]}
5... h6 {[%clk 0:02:53.5]} 6. exf6 {[%clk 0:02:49.8]} 6... hxg5 {[%clk
0:02:50.8]} 7. fxg7 {[%clk 0:02:49.7]} 7... Rg8 {[%clk 0:02:51.3]} 8. a3 {[%clk
0:02:49]} 8... Bxc3+ {[%clk 0:02:50.6]} 9. bxc3 {[%clk 0:02:48.6]} 9... Qf6
{[%clk 0:02:50.3]} 10. h4 {[%clk 0:02:47.7]} 10... gxh4 {[%clk 0:02:49.8]} 11.
Qh5 {[%clk 0:02:45.1]} 11... Qxg7 {[%clk 0:02:46.8]} 12. Qxh4 {[%clk 0:02:43.7]}
12... c5 {[%clk 0:02:35.1]} 13. Nf3 {[%clk 0:02:42.9]} 13... c4 {[%clk
0:02:30.8]} 14. g3 {[%clk 0:02:40]} 14... Nd7 {[%clk 0:02:12.3]} 15. Rb1 {[%clk
0:02:34.4]} 15... Nf6 {[%clk 0:01:17.7]} 16. Ne5 {[%clk 0:02:23.8]} 16... a6
{[%clk 0:00:42.5]} 17. Bg2 {[%clk 0:02:21.4]} 17... b5 {[%clk 0:00:37.9]} 18. a4
{[%clk 0:02:07.4]} 18... Bd7 {[%clk 0:00:34.3]} 19. Nxd7 {[%clk 0:01:57.6]}
19... Kxd7 {[%clk 0:00:32.6]} 20. axb5 {[%clk 0:01:57.1]} 20... axb5 {[%clk
0:00:31.9]} 21. Rxb5 {[%clk 0:01:37]} 21... Ra1+ {[%clk 0:00:30.4]} 22. Ke2
{[%clk 0:01:30.2]} 22... Rxh1 {[%clk 0:00:27.6]} 23. Bxh1 {[%clk 0:01:30.2]}
23... Qg6 {[%clk 0:00:10.5]} 24. Qf4 {[%clk 0:01:00.8]} 24... Qxc2+ {[%clk
0:00:09.3]} 25. Kf1 {[%clk 0:01:00.4]} 25... Qd1+ {[%clk 0:00:07.5]} 26. Kg2
{[%clk 0:01:00.3]} 26... Rh8 {[%clk 0:00:04.7]} 27. Rb7+ {[%clk 0:00:57.3]} 1-0

[Event "Late-Titled-Tuesday-Blitz-March-26-2024"]
[Site "Chess.com"]
[Date "2024.03.26"]
[Round "11"]
[White "andrzej"]
[Black "LeoWin2012"]
[Result "0-1"]
[WhiteElo "2483"]
[BlackElo "2304"]
[TimeControl "180+1"]
[EndTime "16:03:15 PDT"]
[Termination "LeoWin2012 won by checkmate"]

1. d4 {[%clk 0:03:00.9]} 1... Nf6 {[%clk 0:02:59.1]} 2. Bg5 {[%clk 0:03:01.3]}
2... g6 {[%clk 0:03:00]} 3. Bxf6 {[%clk 0:03:01.2]} 3... exf6 {[%clk 0:03:00.2]}
4. e3 {[%clk 0:02:59.7]} 4... f5 {[%clk 0:02:59.7]} 5. g3 {[%clk 0:02:59.9]}
5... d5 {[%clk 0:02:59.5]} 6. Bg2 {[%clk 0:03:00.3]} 6... c6 {[%clk 0:02:59.5]}
7. Ne2 {[%clk 0:03:00.4]} 7... Bg7 {[%clk 0:02:57.4]} 8. O-O {[%clk 0:03:00.7]}
8... O-O {[%clk 0:02:57.1]} 9. h4 {[%clk 0:03:00.5]} 9... h5 {[%clk 0:02:55.5]}
10. b3 {[%clk 0:03:00.6]} 10... Nd7 {[%clk 0:02:54.2]} 11. c4 {[%clk 0:03:00.3]}
11... dxc4 {[%clk 0:02:54]} 12. bxc4 {[%clk 0:03:00.3]} 12... Nb6 {[%clk
0:02:54.3]} 13. Qc2 {[%clk 0:02:56.5]} 13... Be6 {[%clk 0:02:53]} 14. Nd2 {[%clk
0:02:55.2]} 14... Qe7 {[%clk 0:02:49]} 15. Nf4 {[%clk 0:02:53.5]} 15... Rac8
{[%clk 0:02:44.4]} 16. Rab1 {[%clk 0:02:50.6]} 16... Rfd8 {[%clk 0:02:40.7]} 17.
a4 {[%clk 0:02:42.1]} 17... Rc7 {[%clk 0:02:27.8]} 18. a5 {[%clk 0:02:37.4]}
18... Nd7 {[%clk 0:02:27.1]} 19. Rfc1 {[%clk 0:02:31]} 19... Nb8 {[%clk
0:02:26.4]} 20. Qb2 {[%clk 0:02:03.8]} 20... Na6 {[%clk 0:02:19.1]} 21. Nd3
{[%clk 0:01:33.5]} 21... c5 {[%clk 0:02:14]} 22. Nf3 {[%clk 0:01:27.4]} 22...
cxd4 {[%clk 0:02:11.9]} 23. exd4 {[%clk 0:01:24.6]} 23... Bxc4 {[%clk
0:02:11.2]} 24. Nde5 {[%clk 0:01:19.5]} 24... Bd5 {[%clk 0:02:06.6]} 25. Rxc7
{[%clk 0:01:19]} 25... Nxc7 {[%clk 0:02:06.5]} 26. Qc1 {[%clk 0:01:02.7]} 26...
Ne6 {[%clk 0:02:05.9]} 27. Qb2 {[%clk 0:00:47.5]} 27... Nxd4 {[%clk 0:01:58.3]}
28. Nxd4 {[%clk 0:00:29.7]} 28... Bxe5 {[%clk 0:01:55.7]} 29. Re1 {[%clk
0:00:15.4]} 29... Bxg2 {[%clk 0:01:54]} 30. Kxg2 {[%clk 0:00:14]} 30... Qf6
{[%clk 0:01:41.9]} 31. Rd1 {[%clk 0:00:07.3]} 31... Rxd4 {[%clk 0:01:39.5]} 32.
Rxd4 {[%clk 0:00:06.6]} 32... Bxd4 {[%clk 0:01:40.4]} 33. Qxb7 {[%clk
0:00:06.8]} 33... Qe6 {[%clk 0:01:36.1]} 34. Qb8+ {[%clk 0:00:05.8]} 34... Kg7
{[%clk 0:01:35.6]} 35. Qb4 {[%clk 0:00:05.4]} 35... Qe4+ {[%clk 0:01:35.5]} 36.
Kh2 {[%clk 0:00:05.1]} 36... Bxf2 {[%clk 0:01:34]} 37. Qc3+ {[%clk 0:00:05.5]}
37... Bd4 {[%clk 0:01:33]} 38. Qc7 {[%clk 0:00:04]} 38... Qe2+ {[%clk
0:01:31.5]} 39. Kh3 {[%clk 0:00:04.3]} 39... Qf1+ {[%clk 0:01:31.4]} 40. Kh2
{[%clk 0:00:04.9]} 40... Bg1+ {[%clk 0:01:27.1]} 41. Kh1 {[%clk 0:00:03.9]}
41... Bf2+ {[%clk 0:01:27.4]} 42. Kh2 {[%clk 0:00:04.2]} 42... Qg1+ {[%clk
0:01:27.4]} 43. Kh3 {[%clk 0:00:04.6]} 43... Qh1# {[%clk 0:01:27.7]} 0-1

[Event "Late-Titled-Tuesday-Blitz-March-26-2024"]
[Site "Chess.com"]
[Date "2024.03.26"]
[Round "11"]
[White "Fonsofan"]
[Black "1mbl4"]
[Result "1-0"]
[WhiteElo "2762"]
[BlackElo "2620"]
[TimeControl "180+1"]
[EndTime "16:03:18 PDT"]
[Termination "Fonsofan won by checkmate"]

1. b4 {[%clk 0:02:57.2]} 1... c6 {[%clk 0:02:56.5]} 2. Bb2 {[%clk 0:02:55.5]}
2... Qb6 {[%clk 0:02:56.6]} 3. a3 {[%clk 0:02:56.2]} 3... a5 {[%clk 0:02:56.6]}
4. c4 {[%clk 0:02:56.7]} 4... d6 {[%clk 0:02:53.5]} 5. Qb3 {[%clk 0:02:30.8]}
5... Nf6 {[%clk 0:02:42.6]} 6. Nc3 {[%clk 0:02:27.3]} 6... axb4 {[%clk
0:02:42.5]} 7. axb4 {[%clk 0:02:28.2]} 7... Rxa1+ {[%clk 0:02:42.4]} 8. Bxa1
{[%clk 0:02:29]} 8... Na6 {[%clk 0:02:41.7]} 9. Na2 {[%clk 0:02:28.3]} 9... e5
{[%clk 0:02:37.3]} 10. e3 {[%clk 0:02:27.6]} 10... Be7 {[%clk 0:02:33.4]} 11.
Nf3 {[%clk 0:02:27.9]} 11... O-O {[%clk 0:02:32.5]} 12. Be2 {[%clk 0:02:25.8]}
12... e4 {[%clk 0:02:29.3]} 13. Nd4 {[%clk 0:02:25.5]} 13... d5 {[%clk
0:02:23.3]} 14. c5 {[%clk 0:02:20.9]} 14... Qc7 {[%clk 0:02:20.2]} 15. f4 {[%clk
0:02:20.3]} 15... exf3 {[%clk 0:02:17.6]} 16. Nxf3 {[%clk 0:02:19.4]} 16... Ne4
{[%clk 0:02:09.7]} 17. O-O {[%clk 0:02:17]} 17... Bf6 {[%clk 0:02:03.1]} 18.
Bxf6 {[%clk 0:02:14.8]} 18... Nxf6 {[%clk 0:02:02.7]} 19. Nc3 {[%clk 0:02:11.9]}
19... Re8 {[%clk 0:02:00.6]} 20. Bxa6 {[%clk 0:02:11.3]} 20... bxa6 {[%clk
0:02:00.4]} 21. Ne2 {[%clk 0:02:11.2]} 21... a5 {[%clk 0:01:56.9]} 22. b5 {[%clk
0:02:11.2]} 22... cxb5 {[%clk 0:01:53.3]} 23. Qxb5 {[%clk 0:02:12.1]} 23... Bd7
{[%clk 0:01:50.7]} 24. Qb6 {[%clk 0:02:01.3]} 24... Qxb6 {[%clk 0:01:40.7]} 25.
cxb6 {[%clk 0:02:02.2]} 25... Bb5 {[%clk 0:01:40.9]} 26. Nfd4 {[%clk 0:02:02]}
26... Bxe2 {[%clk 0:01:38.1]} 27. Nxe2 {[%clk 0:02:02.9]} 27... Rb8 {[%clk
0:01:37.7]} 28. Rb1 {[%clk 0:01:58]} 28... a4 {[%clk 0:01:33.7]} 29. Nc3 {[%clk
0:01:52.3]} 29... a3 {[%clk 0:01:33.2]} 30. Rb3 {[%clk 0:01:51.6]} 30... h5
{[%clk 0:01:31.5]} 31. d4 {[%clk 0:01:39.7]} 31... Kh7 {[%clk 0:01:19.6]} 32.
Kf2 {[%clk 0:01:39.3]} 32... Ne4+ {[%clk 0:00:56]} 33. Nxe4 {[%clk 0:01:37.6]}
33... dxe4 {[%clk 0:00:56.9]} 34. Kg3 {[%clk 0:01:20.9]} 34... g5 {[%clk
0:00:51.7]} 35. h4 {[%clk 0:01:18.7]} 35... f6 {[%clk 0:00:50.9]} 36. hxg5
{[%clk 0:01:13.5]} 36... fxg5 {[%clk 0:00:50.5]} 37. Rxa3 {[%clk 0:01:14.2]}
37... Rxb6 {[%clk 0:00:50.1]} 38. Ra5 {[%clk 0:01:14.9]} 38... Kg6 {[%clk
0:00:47]} 39. Re5 {[%clk 0:01:15.3]} 39... Rb2 {[%clk 0:00:26]} 40. Rxe4 {[%clk
0:01:15.2]} 40... Rd2 {[%clk 0:00:25.4]} 41. Re8 {[%clk 0:01:13.1]} 41... h4+
{[%clk 0:00:19.9]} 42. Kf3 {[%clk 0:01:12.9]} 42... Kh5 {[%clk 0:00:18]} 43. Re5
{[%clk 0:01:12.9]} 43... Kg6 {[%clk 0:00:16.2]} 44. d5 {[%clk 0:01:12.3]} 44...
Kf6 {[%clk 0:00:16.1]} 45. Re6+ {[%clk 0:01:12.4]} 45... Kf5 {[%clk 0:00:16.2]}
46. e4# {[%clk 0:01:12.6]} 1-0